[Event "Titled Tuesday Blitz December 7 2021"]
[White "Punin, Andrii"]
[Black "Samarth, J Rao"]
[WhiteFideId "14112639"]
[BlackFideId "46652370"]
[WhiteElo "2357"]
[BlackElo "1514"]
[Result "1-0"]
[Round "02"]
[TimeControl "180+1"]
[Date "2021.12.07"]
[WhiteClock "0:00:45"]
[BlackClock "0:00:02"]

1. d4 {[%clk 0:02:59]}  d5 {[%clk 0:02:58]} 2. Bf4 {[%clk 0:02:58]}  Nf6 {[%clk 0:02:57]} 3. e3 {[%clk 0:02:58]}  c5 {[%clk 0:02:57]} 4. c3 {[%clk 0:02:57]}  e6 {[%clk 0:02:56]} 5. Nd2 {[%clk 0:02:55]}  Nc6 {[%clk 0:02:56]} 6. Ngf3 {[%clk 0:02:54]}  Be7 {[%clk 0:02:56]} 7. Bd3 {[%clk 0:02:53]}  Nh5 {[%clk 0:02:56]} 8. Bg3 {[%clk 0:02:49]}  Nxg3 {[%clk 0:02:55]} 9. hxg3 {[%clk 0:02:50]}  h6 {[%clk 0:02:56]} 10. Qe2 {[%clk 0:02:48]}  c4 {[%clk 0:02:54]} 11. Bc2 {[%clk 0:02:47]}  f5 {[%clk 0:02:54]} 12. Ne5 {[%clk 0:02:43]}  Nxe5 {[%clk 0:02:53]} 13. dxe5 {[%clk 0:02:43]}  g6 {[%clk 0:02:50]} 14. f4 {[%clk 0:02:41]}  Kf7 {[%clk 0:02:33]} 15. Nf3 {[%clk 0:02:37]}  h5 {[%clk 0:02:32]} 16. Nd4 {[%clk 0:02:33]}  Bd7 {[%clk 0:02:32]} 17. Kf2 {[%clk 0:02:25]}  b5 {[%clk 0:02:28]} 18. a3 {[%clk 0:02:23]}  a5 {[%clk 0:02:26]} 19. Qd2 {[%clk 0:02:16]}  Qb6 {[%clk 0:02:20]} 20. Rhb1 {[%clk 0:02:14]}  h4 {[%clk 0:02:12]} 21. Nf3 {[%clk 0:02:09]}  hxg3+ {[%clk 0:01:43]} 22. Kxg3 {[%clk 0:02:10]}  Rh5 {[%clk 0:01:42]} 23. Rh1 {[%clk 0:02:08]}  Rah8 {[%clk 0:01:42]} 24. Rxh5 {[%clk 0:02:07]}  gxh5 {[%clk 0:01:38]} 25. Rh1 {[%clk 0:01:55]}  Qb8 {[%clk 0:01:36]} 26. Kf2 {[%clk 0:01:52]}  h4 {[%clk 0:01:34]} 27. Rh3 {[%clk 0:01:52]}  b4 {[%clk 0:01:32]} 28. axb4 {[%clk 0:01:41]}  axb4 {[%clk 0:01:32]} 29. Nd4 {[%clk 0:01:38]}  bxc3 {[%clk 0:01:25]} 30. bxc3 {[%clk 0:01:39]}  Qb2 {[%clk 0:01:17]} 31. Ke2 {[%clk 0:01:34]}  Rg8 {[%clk 0:01:14]} 32. Rh2 {[%clk 0:01:34]}  Ra8 {[%clk 0:00:53]} 33. Nxf5 {[%clk 0:01:25]}  exf5 {[%clk 0:00:44]} 34. Qxd5+ {[%clk 0:01:23]}  Be6 {[%clk 0:00:44]} 35. Qxa8 {[%clk 0:01:22]}  Qxc2+ {[%clk 0:00:44]} 36. Kf1 {[%clk 0:01:17]}  Qd1+ {[%clk 0:00:41]} 37. Kf2 {[%clk 0:01:16]}  Qd2+ {[%clk 0:00:41]} 38. Kf1 {[%clk 0:01:16]}  Qxe3 {[%clk 0:00:39]} 39. Qf3 {[%clk 0:01:10]}  Qc1+ {[%clk 0:00:35]} 40. Ke2 {[%clk 0:01:10]}  Qc2+ {[%clk 0:00:32]} 41. Ke1 {[%clk 0:01:09]}  Qe4+ {[%clk 0:00:25]} 42. Kf2 {[%clk 0:00:53]}  Bc5+ {[%clk 0:00:19]} 43. Kf1 {[%clk 0:00:53]}  Qb1+ {[%clk 0:00:19]} 44. Ke2 {[%clk 0:00:53]}  Qc2+ {[%clk 0:00:19]} 45. Ke1 {[%clk 0:00:52]}  Qe4+ {[%clk 0:00:11]} 46. Qxe4 {[%clk 0:00:51]}  fxe4 {[%clk 0:00:11]} 47. Rxh4 {[%clk 0:00:51]}  Ba3 {[%clk 0:00:03]} 48. Kd2 {[%clk 0:00:49]}  Bf5 {[%clk 0:00:02]} 49. Rh6 {[%clk 0:00:47]}  Kg7 {[%clk 0:00:02]} 50. Rf6 {[%clk 0:00:45]}  Bc5 {[%clk 0:00:02]} 51. Rxf5 {[%clk 0:00:45]} 1-0


[Site "https://www.chess.com"]

[Event "Titled Tuesday Blitz December 7 2021"]
[White "Rakhmanov, Aleksandr"]
[Black "Juhasz, Agoston"]
[WhiteFideId "4173708"]
[BlackFideId "778346"]
[WhiteElo "2500"]
[BlackElo "2211"]
[Result "1-0"]
[Round "02"]
[TimeControl "180+1"]
[Date "2021.12.07"]
[WhiteClock "0:00:42"]
[BlackClock "0:00:05"]

1. Nf3 {[%clk 0:03:00]}  Nf6 {[%clk 0:02:59]} 2. g3 {[%clk 0:02:58]}  g6 {[%clk 0:02:56]} 3. Bg2 {[%clk 0:02:59]}  b6 {[%clk 0:02:55]} 4. O-O {[%clk 0:02:59]}  Bb7 {[%clk 0:02:55]} 5. d4 {[%clk 0:02:59]}  Bg7 {[%clk 0:02:55]} 6. c4 {[%clk 0:02:59]}  O-O {[%clk 0:02:55]} 7. Nc3 {[%clk 0:02:58]}  Ne4 {[%clk 0:02:55]} 8. Bd2 {[%clk 0:02:49]}  d6 {[%clk 0:02:32]} 9. Qc2 {[%clk 0:02:47]}  Nxd2 {[%clk 0:02:30]} 10. Qxd2 {[%clk 0:02:46]}  Nd7 {[%clk 0:02:27]} 11. Rfe1 {[%clk 0:02:46]}  e5 {[%clk 0:02:24]} 12. e4 {[%clk 0:02:41]}  Re8 {[%clk 0:02:15]} 13. Rad1 {[%clk 0:02:40]}  exd4 {[%clk 0:02:03]} 14. Nxd4 {[%clk 0:02:39]}  Nc5 {[%clk 0:02:03]} 15. Nd5 {[%clk 0:02:32]}  Ne6 {[%clk 0:01:59]} 16. Ne2 {[%clk 0:02:23]}  c5 {[%clk 0:01:21]} 17. Ndc3 {[%clk 0:02:07]}  Nd4 {[%clk 0:01:17]} 18. b3 {[%clk 0:02:04]}  Qf6 {[%clk 0:01:13]} 19. Nxd4 {[%clk 0:02:01]}  Qxd4 {[%clk 0:00:57]} 20. Qxd4 {[%clk 0:01:45]}  Bxd4 {[%clk 0:00:30]} 21. Nb5 {[%clk 0:01:44]}  Be5 {[%clk 0:00:30]} 22. f4 {[%clk 0:01:00]}  a6 {[%clk 0:00:29]} 23. Nxd6 {[%clk 0:01:00]}  Bxd6 {[%clk 0:00:21]} 24. Rxd6 {[%clk 0:00:59]}  Re6 {[%clk 0:00:22]} 25. Rxe6 {[%clk 0:00:56]}  fxe6 {[%clk 0:00:22]} 26. Rd1 {[%clk 0:00:56]}  e5 {[%clk 0:00:15]} 27. Rd7 {[%clk 0:00:53]}  Rb8 {[%clk 0:00:13]} 28. fxe5 {[%clk 0:00:52]}  Bc6 {[%clk 0:00:12]} 29. Rc7 {[%clk 0:00:49]}  Bb7 {[%clk 0:00:08]} 30. e6 {[%clk 0:00:49]}  h5 {[%clk 0:00:06]} 31. Kf2 {[%clk 0:00:42]}  Kf8 {[%clk 0:00:05]} 32. Ke3 {[%clk 0:00:42]} 1-0


[Site "https://www.chess.com"]

[Event "Titled Tuesday Blitz December 7 2021"]
[White "Riehle, Marco"]
[Black "Donchenko, Alexander"]
[WhiteFideId "12904392"]
[BlackFideId "24603295"]
[WhiteElo "2462"]
[BlackElo "2494"]
[Result "1-0"]
[Round "02"]
[TimeControl "180+1"]
[Date "2021.12.07"]
[WhiteClock "0:01:35"]
[BlackClock "0:00:09"]

1. e4 {[%clk 0:03:00]}  c6 {[%clk 0:02:58]} 2. c4 {[%clk 0:03:00]}  d5 {[%clk 0:02:59]} 3. exd5 {[%clk 0:03:01]}  cxd5 {[%clk 0:02:59]} 4. cxd5 {[%clk 0:03:01]}  Nf6 {[%clk 0:02:59]} 5. Nc3 {[%clk 0:03:02]}  Nxd5 {[%clk 0:03:00]} 6. Nf3 {[%clk 0:03:02]}  Nc6 {[%clk 0:03:00]} 7. Bb5 {[%clk 0:02:59]}  e6 {[%clk 0:02:59]} 8. O-O {[%clk 0:02:58]}  Be7 {[%clk 0:02:59]} 9. d4 {[%clk 0:02:58]}  O-O {[%clk 0:02:59]} 10. Re1 {[%clk 0:02:56]}  a6 {[%clk 0:02:53]} 11. Bd3 {[%clk 0:02:56]}  b5 {[%clk 0:02:44]} 12. Nxd5 {[%clk 0:02:55]}  exd5 {[%clk 0:02:36]} 13. Bxh7+ {[%clk 0:02:50]}  Kxh7 {[%clk 0:02:36]} 14. Qc2+ {[%clk 0:02:50]}  Kg8 {[%clk 0:02:33]} 15. Qxc6 {[%clk 0:02:51]}  Be6 {[%clk 0:02:29]} 16. Bf4 {[%clk 0:02:47]}  Qa5 {[%clk 0:02:18]} 17. Bd2 {[%clk 0:02:45]}  Qd8 {[%clk 0:02:11]} 18. Rac1 {[%clk 0:02:43]}  Bf6 {[%clk 0:02:07]} 19. h3 {[%clk 0:02:39]}  Re8 {[%clk 0:02:01]} 20. Ne5 {[%clk 0:02:37]}  Qe7 {[%clk 0:01:49]} 21. a3 {[%clk 0:02:23]}  Rec8 {[%clk 0:01:46]} 22. Qb6 {[%clk 0:02:24]}  Rxc1 {[%clk 0:01:23]} 23. Rxc1 {[%clk 0:02:20]}  Bxe5 {[%clk 0:01:15]} 24. dxe5 {[%clk 0:02:20]}  Qd8 {[%clk 0:01:15]} 25. Qxd8+ {[%clk 0:02:02]}  Rxd8 {[%clk 0:01:16]} 26. Ba5 {[%clk 0:02:02]}  Rc8 {[%clk 0:01:15]} 27. Rxc8+ {[%clk 0:02:02]}  Bxc8 {[%clk 0:01:16]} 28. f4 {[%clk 0:02:02]}  d4 {[%clk 0:01:06]} 29. Kf2 {[%clk 0:02:02]}  Bb7 {[%clk 0:00:59]} 30. g4 {[%clk 0:02:02]}  g6 {[%clk 0:00:59]} 31. Kg3 {[%clk 0:01:57]}  Kf8 {[%clk 0:00:54]} 32. Bb4+ {[%clk 0:01:54]}  Ke8 {[%clk 0:00:54]} 33. f5 {[%clk 0:01:49]}  gxf5 {[%clk 0:00:49]} 34. gxf5 {[%clk 0:01:50]}  d3 {[%clk 0:00:36]} 35. h4 {[%clk 0:01:49]}  d2 {[%clk 0:00:15]} 36. Bxd2 {[%clk 0:01:49]}  Kf8 {[%clk 0:00:16]} 37. Kf4 {[%clk 0:01:44]}  Bc8 {[%clk 0:00:16]} 38. Bc3 {[%clk 0:01:37]}  Kg8 {[%clk 0:00:15]} 39. Kg5 {[%clk 0:01:37]}  Bd7 {[%clk 0:00:13]} 40. Kf6 {[%clk 0:01:36]}  Bc8 {[%clk 0:00:14]} 41. h5 {[%clk 0:01:35]}  Kh7 {[%clk 0:00:08]} 42. Kxf7 {[%clk 0:01:33]}  Bxf5 {[%clk 0:00:07]} 43. e6 {[%clk 0:01:34]}  Kh6 {[%clk 0:00:07]} 44. e7 {[%clk 0:01:33]}  Kxh5 {[%clk 0:00:07]} 45. e8=Q {[%clk 0:01:33]}  Bg6+ {[%clk 0:00:07]} 46. Ke7 {[%clk 0:01:33]}  Bxe8 {[%clk 0:00:08]} 47. Kxe8 {[%clk 0:01:34]}  Kg6 {[%clk 0:00:09]} 48. Kd7 {[%clk 0:01:35]} 1-0


[Site "https://www.chess.com"]

[Event "Titled Tuesday Blitz December 7 2021"]
[White "Romero Ruscalleda, Josep"]
[Black "Karacsonyi, Gellert"]
[WhiteFideId "2231859"]
[BlackFideId "764620"]
[WhiteElo "2310"]
[BlackElo "2215"]
[Result "1/2-1/2"]
[Round "02"]
[TimeControl "180+1"]
[Date "2021.12.07"]
[WhiteClock "0:00:09"]
[BlackClock "0:00:07"]

1. e4 {[%clk 0:03:00]}  c5 {[%clk 0:02:59]} 2. c3 {[%clk 0:03:00]}  Nf6 {[%clk 0:02:58]} 3. e5 {[%clk 0:03:00]}  Nd5 {[%clk 0:02:58]} 4. Nf3 {[%clk 0:03:01]}  e6 {[%clk 0:02:58]} 5. d4 {[%clk 0:03:00]}  cxd4 {[%clk 0:02:57]} 6. cxd4 {[%clk 0:03:00]}  d6 {[%clk 0:02:58]} 7. Bd3 {[%clk 0:02:57]}  Nc6 {[%clk 0:02:57]} 8. a3 {[%clk 0:02:57]}  dxe5 {[%clk 0:02:56]} 9. dxe5 {[%clk 0:02:56]}  Be7 {[%clk 0:02:53]} 10. O-O {[%clk 0:02:56]}  O-O {[%clk 0:02:53]} 11. Qe2 {[%clk 0:02:54]}  Re8 {[%clk 0:02:51]} 12. Bd2 {[%clk 0:02:50]}  b6 {[%clk 0:02:49]} 13. Nc3 {[%clk 0:02:49]}  Bb7 {[%clk 0:02:47]} 14. Rfd1 {[%clk 0:02:34]}  Nxc3 {[%clk 0:02:39]} 15. Bxc3 {[%clk 0:02:34]}  Qc7 {[%clk 0:02:39]} 16. Rac1 {[%clk 0:02:32]}  Rac8 {[%clk 0:02:36]} 17. b4 {[%clk 0:02:32]}  Qb8 {[%clk 0:02:35]} 18. Bb2 {[%clk 0:02:30]}  Red8 {[%clk 0:02:33]} 19. Qe4 {[%clk 0:02:24]}  g6 {[%clk 0:02:32]} 20. Qf4 {[%clk 0:02:20]}  Rd7 {[%clk 0:02:27]} 21. Ng5 {[%clk 0:02:13]}  Bxg5 {[%clk 0:02:17]} 22. Qxg5 {[%clk 0:02:13]}  Ne7 {[%clk 0:02:16]} 23. Bb5 {[%clk 0:02:00]}  Rxd1+ {[%clk 0:02:05]} 24. Rxd1 {[%clk 0:01:59]}  Nd5 {[%clk 0:02:05]} 25. Bd3 {[%clk 0:01:49]}  Qc7 {[%clk 0:01:59]} 26. h4 {[%clk 0:01:47]}  Qe7 {[%clk 0:01:48]} 27. Qxe7 {[%clk 0:01:36]}  Nxe7 {[%clk 0:01:49]} 28. Rc1 {[%clk 0:01:26]}  Rxc1+ {[%clk 0:01:47]} 29. Bxc1 {[%clk 0:01:26]}  Bd5 {[%clk 0:01:47]} 30. f3 {[%clk 0:01:23]}  Nc6 {[%clk 0:01:46]} 31. Bb2 {[%clk 0:01:22]}  Kf8 {[%clk 0:01:46]} 32. Kf2 {[%clk 0:01:22]}  Ke7 {[%clk 0:01:46]} 33. Ke3 {[%clk 0:01:21]}  a5 {[%clk 0:01:45]} 34. bxa5 {[%clk 0:01:17]}  bxa5 {[%clk 0:01:35]} 35. Bc3 {[%clk 0:01:16]}  Bb3 {[%clk 0:01:02]} 36. h5 {[%clk 0:01:13]}  a4 {[%clk 0:00:54]} 37. hxg6 {[%clk 0:01:12]}  hxg6 {[%clk 0:00:54]} 38. Bb5 {[%clk 0:01:06]}  Na7 {[%clk 0:00:53]} 39. Bd3 {[%clk 0:01:04]}  Nc8 {[%clk 0:00:52]} 40. Bb4+ {[%clk 0:01:02]}  Kd7 {[%clk 0:00:53]} 41. Bb5+ {[%clk 0:01:00]}  Kc7 {[%clk 0:00:53]} 42. Be8 {[%clk 0:00:59]}  g5 {[%clk 0:00:36]} 43. Bxf7 {[%clk 0:00:59]}  Kd7 {[%clk 0:00:32]} 44. g3 {[%clk 0:00:56]}  Nb6 {[%clk 0:00:32]} 45. Bc5 {[%clk 0:00:42]}  Nc4+ {[%clk 0:00:31]} 46. Kd4 {[%clk 0:00:38]}  Nd2 {[%clk 0:00:29]} 47. f4 {[%clk 0:00:36]}  gxf4 {[%clk 0:00:29]} 48. gxf4 {[%clk 0:00:36]}  Nf3+ {[%clk 0:00:25]} 49. Ke3 {[%clk 0:00:32]}  Nh4 {[%clk 0:00:24]} 50. Bh5 {[%clk 0:00:27]}  Kc6 {[%clk 0:00:23]} 51. Bb4 {[%clk 0:00:24]}  Ng2+ {[%clk 0:00:23]} 52. Kf3 {[%clk 0:00:20]}  Bd5+ {[%clk 0:00:23]} 53. Kg3 {[%clk 0:00:20]}  Ne3 {[%clk 0:00:21]} 54. Bf3 {[%clk 0:00:18]}  Kb5 {[%clk 0:00:16]} 55. Bxd5 {[%clk 0:00:16]}  Nxd5 {[%clk 0:00:16]} 56. Bd6 {[%clk 0:00:16]}  Ne3 {[%clk 0:00:15]} 57. Kf3 {[%clk 0:00:16]}  Nf5 {[%clk 0:00:15]} 58. Bf8 {[%clk 0:00:16]}  Kc4 {[%clk 0:00:16]} 59. Ke4 {[%clk 0:00:16]}  Ng3+ {[%clk 0:00:15]} 60. Ke3 {[%clk 0:00:15]}  Nf5+ {[%clk 0:00:15]} 61. Kf3 {[%clk 0:00:15]}  Nd4+ {[%clk 0:00:15]} 62. Kg4 {[%clk 0:00:15]}  Kd5 {[%clk 0:00:15]} 63. Kg5 {[%clk 0:00:15]}  Ke4 {[%clk 0:00:15]} 64. Bc5 {[%clk 0:00:11]}  Ne2 {[%clk 0:00:15]} 65. Bd6 {[%clk 0:00:07]}  Nxf4 {[%clk 0:00:14]} 66. Kf6 {[%clk 0:00:07]}  Kd5 {[%clk 0:00:14]} 67. Bb4 {[%clk 0:00:07]}  Nd3 {[%clk 0:00:14]} 68. Bd6 {[%clk 0:00:07]}  Nb2 {[%clk 0:00:14]} 69. Ke7 {[%clk 0:00:05]}  Nc4 {[%clk 0:00:15]} 70. Kd7 {[%clk 0:00:05]}  Nxe5+ {[%clk 0:00:09]} 71. Bxe5 {[%clk 0:00:04]}  Kxe5 {[%clk 0:00:10]} 72. Kc6 {[%clk 0:00:05]}  Kd4 {[%clk 0:00:10]} 73. Kb5 {[%clk 0:00:05]}  e5 {[%clk 0:00:10]} 74. Kxa4 {[%clk 0:00:06]}  e4 {[%clk 0:00:11]} 75. Kb3 {[%clk 0:00:07]}  e3 {[%clk 0:00:11]} 76. Kc2 {[%clk 0:00:07]}  Ke4 {[%clk 0:00:05]} 77. Kd1 {[%clk 0:00:08]}  Kd3 {[%clk 0:00:05]} 78. Ke1 {[%clk 0:00:08]}  Kc4 {[%clk 0:00:06]} 79. a4 {[%clk 0:00:08]}  Kb4 {[%clk 0:00:06]} 80. Ke2 {[%clk 0:00:08]}  Ka5 {[%clk 0:00:07]} 81. Kxe3 {[%clk 0:00:09]}  Kxa4 {[%clk 0:00:07]} 1/2-1/2


[Site "https://www.chess.com"]

[Event "Titled Tuesday Blitz December 7 2021"]
[White "Rozum, Ivan"]
[Black "Tomaszewski, Kacper"]
[WhiteFideId "24104272"]
[BlackFideId "1127373"]
[WhiteElo "2546"]
[BlackElo "2153"]
[Result "0-1"]
[Round "02"]
[TimeControl "180+1"]
[Date "2021.12.07"]
[WhiteClock "0:00:06"]
[BlackClock "0:00:20"]

1. b3 {[%clk 0:02:41]}  e5 {[%clk 0:02:58]} 2. Bb2 {[%clk 0:02:42]}  Nc6 {[%clk 0:02:59]} 3. e3 {[%clk 0:02:42]}  Nge7 {[%clk 0:03:00]} 4. c4 {[%clk 0:02:43]}  d5 {[%clk 0:03:00]} 5. cxd5 {[%clk 0:02:43]}  Nxd5 {[%clk 0:03:01]} 6. a3 {[%clk 0:02:43]}  Be6 {[%clk 0:02:59]} 7. Qc2 {[%clk 0:02:44]}  Bd6 {[%clk 0:02:59]} 8. Nf3 {[%clk 0:02:44]}  O-O {[%clk 0:02:55]} 9. d3 {[%clk 0:02:37]}  f5 {[%clk 0:02:55]} 10. Nbd2 {[%clk 0:02:37]}  f4 {[%clk 0:02:41]} 11. e4 {[%clk 0:02:36]}  Nb6 {[%clk 0:02:33]} 12. b4 {[%clk 0:02:35]}  a6 {[%clk 0:02:33]} 13. Kd1 {[%clk 0:02:34]}  Nd7 {[%clk 0:02:16]} 14. Be2 {[%clk 0:02:31]}  Rc8 {[%clk 0:02:07]} 15. Ke1 {[%clk 0:02:28]}  Ne7 {[%clk 0:02:04]} 16. d4 {[%clk 0:02:26]}  Ng6 {[%clk 0:01:55]} 17. Bc4 {[%clk 0:02:22]}  Bxc4 {[%clk 0:01:48]} 18. Qxc4+ {[%clk 0:02:23]}  Kh8 {[%clk 0:01:49]} 19. Ke2 {[%clk 0:02:19]}  exd4 {[%clk 0:01:43]} 20. Nxd4 {[%clk 0:02:14]}  Nde5 {[%clk 0:01:38]} 21. Qb3 {[%clk 0:02:13]}  Re8 {[%clk 0:01:36]} 22. Rhd1 {[%clk 0:02:07]}  Qh4 {[%clk 0:01:33]} 23. h3 {[%clk 0:01:54]}  f3+ {[%clk 0:01:17]} 24. N4xf3 {[%clk 0:01:48]}  Nxf3 {[%clk 0:01:14]} 25. Qxf3 {[%clk 0:01:22]}  Rf8 {[%clk 0:01:11]} 26. Qe3 {[%clk 0:01:22]}  Bf4 {[%clk 0:01:04]} 27. Nf3 {[%clk 0:00:57]}  Bxe3 {[%clk 0:00:48]} 28. Nxh4 {[%clk 0:00:57]}  Rxf2+ {[%clk 0:00:40]} 29. Kxe3 {[%clk 0:00:57]}  Rxb2 {[%clk 0:00:40]} 30. Nxg6+ {[%clk 0:00:58]}  hxg6 {[%clk 0:00:40]} 31. Rd2 {[%clk 0:00:58]}  Rb3+ {[%clk 0:00:37]} 32. Rd3 {[%clk 0:00:59]}  Rb2 {[%clk 0:00:36]} 33. Rd2 {[%clk 0:00:47]}  Rb3+ {[%clk 0:00:37]} 34. Kf4 {[%clk 0:00:45]}  Rf8+ {[%clk 0:00:37]} 35. Ke5 {[%clk 0:00:44]}  Re8+ {[%clk 0:00:35]} 36. Kf4 {[%clk 0:00:44]}  Rf8+ {[%clk 0:00:35]} 37. Kg4 {[%clk 0:00:43]}  Re3 {[%clk 0:00:33]} 38. Rd4 {[%clk 0:00:31]}  Rf2 {[%clk 0:00:33]} 39. g3 {[%clk 0:00:29]}  Rff3 {[%clk 0:00:33]} 40. Rc1 {[%clk 0:00:15]}  Rxg3+ {[%clk 0:00:33]} 41. Kf4 {[%clk 0:00:15]}  Rxh3 {[%clk 0:00:31]} 42. Rxc7 {[%clk 0:00:14]}  Rxa3 {[%clk 0:00:27]} 43. Rxb7 {[%clk 0:00:14]}  g5+ {[%clk 0:00:24]} 44. Kxg5 {[%clk 0:00:14]}  Raf3 {[%clk 0:00:20]} 45. Rd5 {[%clk 0:00:07]}  Rhg3+ {[%clk 0:00:20]} 46. Kh5 {[%clk 0:00:07]}  Rg1 {[%clk 0:00:17]} 47. Rg5 {[%clk 0:00:05]}  Rh3+ {[%clk 0:00:15]} 48. Kg6 {[%clk 0:00:05]}  Rh6+ {[%clk 0:00:16]} 49. Kf5 {[%clk 0:00:05]}  Rf6+ {[%clk 0:00:16]} 50. Ke5 {[%clk 0:00:03]}  Rxg5+ {[%clk 0:00:17]} 51. Kd4 {[%clk 0:00:04]}  Rd6+ {[%clk 0:00:18]} 52. Ke3 {[%clk 0:00:04]}  Re6 {[%clk 0:00:18]} 53. Kd4 {[%clk 0:00:04]}  Rge5 {[%clk 0:00:19]} 54. Rb8+ {[%clk 0:00:04]}  Kh7 {[%clk 0:00:19]} 55. Kc3 {[%clk 0:00:05]}  Rxe4 {[%clk 0:00:19]} 56. Rc8 {[%clk 0:00:05]}  Rg4 {[%clk 0:00:20]} 57. Kb3 {[%clk 0:00:05]}  Re3+ {[%clk 0:00:20]} 58. Ka4 {[%clk 0:00:05]}  Ree4 {[%clk 0:00:21]} 59. Ka5 {[%clk 0:00:06]}  Rxb4 {[%clk 0:00:21]} 60. Rc7 {[%clk 0:00:06]}  Rb1 {[%clk 0:00:20]} 0-1


[Site "https://www.chess.com"]

[Event "Titled Tuesday Blitz December 7 2021"]
[White "Saydaliev, Saidakbar"]
[Black "Villalba, Marcelo"]
[WhiteFideId "14203693"]
[BlackFideId "3701859"]
[WhiteElo "2279"]
[BlackElo "2160"]
[Result "1-0"]
[Round "02"]
[TimeControl "180+1"]
[Date "2021.12.07"]
[WhiteClock "0:00:20"]
[BlackClock "0:00:01"]

1. d4 {[%clk 0:03:00]}  Nf6 {[%clk 0:02:59]} 2. c4 {[%clk 0:03:00]}  e6 {[%clk 0:02:59]} 3. Nc3 {[%clk 0:03:00]}  d5 {[%clk 0:02:59]} 4. Nf3 {[%clk 0:02:51]}  Nbd7 {[%clk 0:02:59]} 5. Bf4 {[%clk 0:02:39]}  dxc4 {[%clk 0:02:56]} 6. e3 {[%clk 0:02:37]}  a6 {[%clk 0:02:56]} 7. a4 {[%clk 0:02:34]}  b6 {[%clk 0:02:55]} 8. Bxc4 {[%clk 0:02:33]}  Bb7 {[%clk 0:02:51]} 9. O-O {[%clk 0:02:33]}  Bd6 {[%clk 0:02:51]} 10. Ne5 {[%clk 0:02:26]}  O-O {[%clk 0:02:39]} 11. Qe2 {[%clk 0:02:26]}  Qb8 {[%clk 0:02:30]} 12. Rfd1 {[%clk 0:02:21]}  Rd8 {[%clk 0:02:26]} 13. e4 {[%clk 0:02:10]}  Nf8 {[%clk 0:01:12]} 14. Bg5 {[%clk 0:01:22]}  Be7 {[%clk 0:00:48]} 15. Ng4 {[%clk 0:01:21]}  Re8 {[%clk 0:00:15]} 16. Bxf6 {[%clk 0:01:18]}  Bxf6 {[%clk 0:00:14]} 17. Nxf6+ {[%clk 0:01:17]}  gxf6 {[%clk 0:00:15]} 18. Rd3 {[%clk 0:01:08]}  Kh8 {[%clk 0:00:14]} 19. Rh3 {[%clk 0:01:08]}  c5 {[%clk 0:00:14]} 20. Qf3 {[%clk 0:01:06]}  Qd8 {[%clk 0:00:12]} 21. d5 {[%clk 0:01:05]}  Qe7 {[%clk 0:00:11]} 22. Rh6 {[%clk 0:00:38]}  Ng6 {[%clk 0:00:07]} 23. Qh5 {[%clk 0:00:36]}  Nf8 {[%clk 0:00:06]} 24. Qh4 {[%clk 0:00:29]}  Rad8 {[%clk 0:00:03]} 25. h3 {[%clk 0:00:24]}  exd5 {[%clk 0:00:01]} 26. exd5 {[%clk 0:00:20]}  Qe5 {[%clk 0:00:01]} 27. Bd3 {[%clk 0:00:20]} 1-0


[Site "https://www.chess.com"]

[Event "Titled Tuesday Blitz December 7 2021"]
[White "Shipov, Sergei"]
[Black "Postnikov, Daniil"]
[WhiteFideId "4113624"]
[BlackFideId "4166329"]
[WhiteElo "2756"]
[BlackElo "2261"]
[Result "1-0"]
[Round "02"]
[TimeControl "180+1"]
[Date "2021.12.07"]
[WhiteClock "0:00:21"]
[BlackClock "0:00:04"]

1. d4 {[%clk 0:02:59]}  Nf6 {[%clk 0:02:59]} 2. c4 {[%clk 0:02:57]}  c5 {[%clk 0:02:59]} 3. d5 {[%clk 0:02:56]}  b5 {[%clk 0:03:00]} 4. cxb5 {[%clk 0:02:56]}  a6 {[%clk 0:03:00]} 5. e3 {[%clk 0:02:56]}  g6 {[%clk 0:03:00]} 6. Nc3 {[%clk 0:02:56]}  Bg7 {[%clk 0:03:00]} 7. a4 {[%clk 0:02:56]}  O-O {[%clk 0:03:00]} 8. Nf3 {[%clk 0:02:57]}  e6 {[%clk 0:03:01]} 9. dxe6 {[%clk 0:02:39]}  fxe6 {[%clk 0:03:00]} 10. Be2 {[%clk 0:02:36]}  Bb7 {[%clk 0:02:55]} 11. O-O {[%clk 0:02:35]}  axb5 {[%clk 0:02:22]} 12. Bxb5 {[%clk 0:02:34]}  Ng4 {[%clk 0:02:13]} 13. e4 {[%clk 0:02:12]}  Bxc3 {[%clk 0:02:01]} 14. bxc3 {[%clk 0:02:12]}  Bxe4 {[%clk 0:02:01]} 15. Ng5 {[%clk 0:02:09]}  Bf5 {[%clk 0:01:52]} 16. h3 {[%clk 0:01:59]}  Nf6 {[%clk 0:01:40]} 17. Re1 {[%clk 0:01:58]}  h5 {[%clk 0:01:31]} 18. Qd6 {[%clk 0:01:55]}  Qc8 {[%clk 0:00:43]} 19. c4 {[%clk 0:01:49]}  Nc6 {[%clk 0:00:39]} 20. Bb2 {[%clk 0:01:49]}  Nd4 {[%clk 0:00:39]} 21. Bxd4 {[%clk 0:01:48]}  cxd4 {[%clk 0:00:40]} 22. Qxd4 {[%clk 0:01:48]}  Qc7 {[%clk 0:00:33]} 23. Rad1 {[%clk 0:01:47]}  Rad8 {[%clk 0:00:33]} 24. Qd6 {[%clk 0:01:42]}  Qa5 {[%clk 0:00:32]} 25. f3 {[%clk 0:01:27]}  Qc3 {[%clk 0:00:27]} 26. h4 {[%clk 0:01:20]}  Ne8 {[%clk 0:00:16]} 27. Qe7 {[%clk 0:01:18]}  Ng7 {[%clk 0:00:15]} 28. Kh2 {[%clk 0:01:10]}  d5 {[%clk 0:00:10]} 29. cxd5 {[%clk 0:01:05]}  Rxd5 {[%clk 0:00:09]} 30. Ne4 {[%clk 0:00:35]}  Qe5+ {[%clk 0:00:08]} 31. Ng3 {[%clk 0:00:35]}  Qf4 {[%clk 0:00:07]} 32. Rxd5 {[%clk 0:00:33]}  exd5 {[%clk 0:00:08]} 33. Bc6 {[%clk 0:00:32]}  d4 {[%clk 0:00:06]} 34. Bd5+ {[%clk 0:00:32]}  Kh7 {[%clk 0:00:05]} 35. Qxf8 {[%clk 0:00:31]}  Qxh4+ {[%clk 0:00:05]} 36. Kg1 {[%clk 0:00:32]}  Qxg3 {[%clk 0:00:06]} 37. Re7 {[%clk 0:00:23]}  Kh6 {[%clk 0:00:02]} 38. Qxg7+ {[%clk 0:00:22]}  Kg5 {[%clk 0:00:03]} 39. Qe5 {[%clk 0:00:22]}  Qxe5 {[%clk 0:00:01]} 40. Rxe5 {[%clk 0:00:22]}  Kf4 {[%clk 0:00:02]} 41. Rxf5+ {[%clk 0:00:21]}  gxf5 {[%clk 0:00:01]} 42. a5 {[%clk 0:00:21]}  Ke3 {[%clk 0:00:02]} 43. a6 {[%clk 0:00:21]}  d3 {[%clk 0:00:03]} 44. a7 {[%clk 0:00:21]}  d2 {[%clk 0:00:04]} 45. Bb3 {[%clk 0:00:21]} 1-0


[Site "https://www.chess.com"]